[Event "*** Titled Tuesday Blitz"]
[Site "Chess.com"]
[Date "2020.04.21"]
[Round "8"]
[White "Eliwood44"]
[Black "DACF2905"]
[Result "0-1"]
[WhiteElo "2309"]
[BlackElo "2183"]
[TimeControl "180+1"]
[EndTime "11:39:07 PDT"]
[Termination "DACF2905 won by resignation"]

1. d4 {[%clk 0:03:00.9]} 1... Nf6 {[%clk 0:02:57.2]} 2. Nf3 {[%clk 0:02:57.2]}
2... e6 {[%clk 0:02:54.4]} 3. g3 {[%clk 0:02:48.4]} 3... b6 {[%clk 0:02:53.7]}
4. Bg2 {[%clk 0:02:47.9]} 4... Bb7 {[%clk 0:02:54]} 5. O-O {[%clk 0:02:48.5]}
5... Be7 {[%clk 0:02:54.1]} 6. c4 {[%clk 0:02:49]} 6... O-O {[%clk 0:02:53.7]}
7. Nc3 {[%clk 0:02:49.3]} 7... d5 {[%clk 0:02:53.3]} 8. cxd5 {[%clk 0:02:42.4]}
8... exd5 {[%clk 0:02:50.7]} 9. Bf4 {[%clk 0:02:41.8]} 9... Nbd7 {[%clk
0:02:49.1]} 10. Qa4 {[%clk 0:02:38]} 10... c6 {[%clk 0:02:47]} 11. Ne5 {[%clk
0:02:36.3]} 11... Nxe5 {[%clk 0:02:43.4]} 12. dxe5 {[%clk 0:02:34.5]} 12... Nd7
{[%clk 0:02:43.4]} 13. e4 {[%clk 0:02:33.6]} 13... Nc5 {[%clk 0:02:42.1]} 14.
Qc2 {[%clk 0:02:31.7]} 14... d4 {[%clk 0:02:38]} 15. Na4 {[%clk 0:02:27.9]}
15... Ne6 {[%clk 0:02:38]} 16. Rfd1 {[%clk 0:02:22.9]} 16... b5 {[%clk
0:02:33.1]} 17. Nc3 {[%clk 0:02:19.5]} 17... Qb6 {[%clk 0:02:26.5]} 18. Ne2
{[%clk 0:02:10.4]} 18... c5 {[%clk 0:02:26.4]} 19. a4 {[%clk 0:02:04]} 19... a6
{[%clk 0:02:25.6]} 20. a5 {[%clk 0:02:02.6]} 20... Qc7 {[%clk 0:02:21.7]} 21. b4
{[%clk 0:01:48]} 21... c4 {[%clk 0:02:13.3]} 22. Nxd4 {[%clk 0:01:45.3]} 22...
Nxf4 {[%clk 0:02:09.7]} 23. gxf4 {[%clk 0:01:46.2]} 23... Bxb4 {[%clk
0:02:09.6]} 24. Nf5 {[%clk 0:01:32.4]} 24... Rad8 {[%clk 0:02:02.5]} 25. Qe2
{[%clk 0:01:21.1]} 25... Bc8 {[%clk 0:02:01.4]} 26. Qg4 {[%clk 0:01:14.6]} 26...
g6 {[%clk 0:02:01.3]} 27. Qg5 {[%clk 0:01:13.9]} 27... Rde8 {[%clk 0:00:37.4]}
28. Nh6+ {[%clk 0:01:01.4]} 28... Kg7 {[%clk 0:00:37]} 29. Nf5+ {[%clk
0:00:42.4]} 29... Bxf5 {[%clk 0:00:24.3]} 30. exf5 {[%clk 0:00:42]} 30... f6
{[%clk 0:00:25]} 31. exf6+ {[%clk 0:00:37.7]} 31... Rxf6 {[%clk 0:00:25.1]} 32.
fxg6 {[%clk 0:00:22.1]} 32... hxg6 {[%clk 0:00:24.7]} 33. Qg4 {[%clk 0:00:17.9]}
33... Qxf4 {[%clk 0:00:22]} 34. Rd7+ {[%clk 0:00:17]} 34... Re7 {[%clk
0:00:22.3]} 35. Rxe7+ {[%clk 0:00:17]} 35... Bxe7 {[%clk 0:00:22.5]} 36. Qxf4
{[%clk 0:00:17.2]} 36... Rxf4 {[%clk 0:00:22.2]} 37. Bb7 {[%clk 0:00:17.1]}
37... Rf6 {[%clk 0:00:21.3]} 38. Rd1 {[%clk 0:00:16.3]} 38... Bb4 {[%clk
0:00:21.3]} 39. Rd7+ {[%clk 0:00:14.8]} 39... Kh6 {[%clk 0:00:21.5]} 40. Rc7
{[%clk 0:00:14.8]} 40... Bxa5 {[%clk 0:00:21.5]} 41. Rc8 {[%clk 0:00:11.6]}
41... Be1 {[%clk 0:00:20.6]} 42. f3 {[%clk 0:00:10.6]} 42... Bd2 {[%clk
0:00:20]} 43. Kg2 {[%clk 0:00:10.1]} 43... c3 {[%clk 0:00:20.4]} 44. Be4 {[%clk
0:00:09.5]} 44... b4 {[%clk 0:00:20.5]} 45. h4 {[%clk 0:00:09]} 45... Kg7 {[%clk
0:00:18.7]} 46. Rc7+ {[%clk 0:00:08.4]} 46... Kf8 {[%clk 0:00:18.9]} 47. Kg3
{[%clk 0:00:05.5]} 47... Bf4+ {[%clk 0:00:17.9]} 48. Kg4 {[%clk 0:00:05.1]}
48... Bxc7 {[%clk 0:00:18.8]} 0-1

[Event "*** Titled Tuesday Blitz"]
[Site "Chess.com"]
[Date "2020.04.21"]
[Round "8"]
[White "SirMittensofMittensville"]
[Black "DanielRensch"]
[Result "1-0"]
[WhiteElo "2676"]
[BlackElo "2492"]
[TimeControl "180+1"]
[EndTime "11:39:09 PDT"]
[Termination "SirMittensofMittensville won on time"]

1. e4 {[%clk 0:03:00.9]} 1... c5 {[%clk 0:02:57]} 2. c3 {[%clk 0:03:00.7]} 2...
d6 {[%clk 0:02:56.9]} 3. d4 {[%clk 0:03:00.5]} 3... Nf6 {[%clk 0:02:57.3]} 4.
Bd3 {[%clk 0:03:00]} 4... g6 {[%clk 0:02:57.4]} 5. Nf3 {[%clk 0:03:00.6]} 5...
Bg7 {[%clk 0:02:57.7]} 6. h3 {[%clk 0:03:01.3]} 6... O-O {[%clk 0:02:57.9]} 7.
dxc5 {[%clk 0:03:02]} 7... dxc5 {[%clk 0:02:57.4]} 8. Qe2 {[%clk 0:03:02.7]}
8... Nfd7 {[%clk 0:02:47]} 9. O-O {[%clk 0:02:59.5]} 9... Qc7 {[%clk 0:02:44.5]}
10. a4 {[%clk 0:02:58]} 10... Nc6 {[%clk 0:02:43.6]} 11. Na3 {[%clk 0:02:53.5]}
11... b6 {[%clk 0:02:43.6]} 12. Bg5 {[%clk 0:02:42.4]} 12... h6 {[%clk 0:02:39]}
13. Bh4 {[%clk 0:02:41.5]} 13... a6 {[%clk 0:02:36]} 14. Bg3 {[%clk 0:02:39.9]}
14... Nce5 {[%clk 0:01:49.9]} 15. Nxe5 {[%clk 0:02:36.3]} 15... Bxe5 {[%clk
0:01:47.1]} 16. f4 {[%clk 0:02:35.6]} 16... Bg7 {[%clk 0:01:46.1]} 17. e5 {[%clk
0:02:29.8]} 17... e6 {[%clk 0:01:38]} 18. Nc4 {[%clk 0:02:27.9]} 18... Rd8
{[%clk 0:01:29.5]} 19. Bh4 {[%clk 0:02:25.7]} 19... Rf8 {[%clk 0:01:16.3]} 20.
Nd6 {[%clk 0:02:22.3]} 20... Nb8 {[%clk 0:00:41.3]} 21. Rad1 {[%clk 0:01:58.5]}
21... Ra7 {[%clk 0:00:33.1]} 22. Be4 {[%clk 0:01:52.8]} 22... Bd7 {[%clk
0:00:30]} 23. Qg4 {[%clk 0:01:14.9]} 23... Bxa4 {[%clk 0:00:27]} 24. Rd3 {[%clk
0:01:04.3]} 24... Bc2 {[%clk 0:00:23.6]} 25. Rd2 {[%clk 0:00:52.7]} 25... Bxe4
{[%clk 0:00:22.6]} 26. Nxe4 {[%clk 0:00:53.6]} 26... Qc6 {[%clk 0:00:21]} 27.
Nf6+ {[%clk 0:00:48.4]} 27... Kh8 {[%clk 0:00:21]} 28. Rfd1 {[%clk 0:00:43.8]}
28... c4 {[%clk 0:00:18.6]} 29. Kh1 {[%clk 0:00:42]} 29... Qc5 {[%clk
0:00:16.5]} 30. Rd8 {[%clk 0:00:21.4]} 30... Rc7 {[%clk 0:00:15]} 31. Ne8 {[%clk
0:00:17.4]} 31... Rc8 {[%clk 0:00:13.6]} 32. Rxc8 {[%clk 0:00:13.4]} 32... Qxc8
{[%clk 0:00:12.9]} 33. Nxg7 {[%clk 0:00:11.2]} 33... Kxg7 {[%clk 0:00:13.8]} 34.
Bf6+ {[%clk 0:00:11.5]} 34... Kh7 {[%clk 0:00:14.3]} 35. Qh4 {[%clk 0:00:11.3]}
35... Nd7 {[%clk 0:00:14.2]} 36. Bg5 {[%clk 0:00:11.6]} 36... h5 {[%clk
0:00:14.4]} 37. Be7 {[%clk 0:00:11.1]} 37... Re8 {[%clk 0:00:14.1]} 38. Qg5
{[%clk 0:00:11.7]} 38... Qc6 {[%clk 0:00:09.6]} 39. Kh2 {[%clk 0:00:11.3]} 39...
Qe4 {[%clk 0:00:09.3]} 40. Rxd7 {[%clk 0:00:09.7]} 40... Qc6 {[%clk 0:00:06.5]}
41. Rd6 {[%clk 0:00:08.9]} 41... Qe4 {[%clk 0:00:06.5]} 42. Rd4 {[%clk
0:00:09.5]} 42... Qe3 {[%clk 0:00:06.3]} 43. Bf6 {[%clk 0:00:09.3]} 43... b5
{[%clk 0:00:05.9]} 44. Rd7 {[%clk 0:00:09.4]} 44... Rf8 {[%clk 0:00:05.7]} 45.
Be7 {[%clk 0:00:08]} 45... Re8 {[%clk 0:00:06.1]} 46. Bd6 {[%clk 0:00:07.9]}
46... Kg8 {[%clk 0:00:02.7]} 47. Qf6 {[%clk 0:00:07.9]} 1-0

[Event "*** Titled Tuesday Blitz"]
[Site "Chess.com"]
[Date "2020.04.21"]
[Round "8"]
[White "yamalchess"]
[Black "Manukyan_Artak"]
[Result "1-0"]
[WhiteElo "2535"]
[BlackElo "2371"]
[TimeControl "180+1"]
[EndTime "11:39:10 PDT"]
[Termination "yamalchess won on time"]

1. d4 {[%clk 0:03:00.9]} 1... Nf6 {[%clk 0:02:59.1]} 2. c4 {[%clk 0:03:00.2]}
2... e6 {[%clk 0:02:58.8]} 3. Nc3 {[%clk 0:03:00.2]} 3... Bb4 {[%clk 0:02:58.9]}
4. Nf3 {[%clk 0:03:00.6]} 4... O-O {[%clk 0:02:58.8]} 5. g3 {[%clk 0:02:59.3]}
5... c5 {[%clk 0:02:58.6]} 6. Bg2 {[%clk 0:02:59]} 6... d5 {[%clk 0:02:46.5]} 7.
cxd5 {[%clk 0:02:58.5]} 7... exd5 {[%clk 0:02:46.6]} 8. O-O {[%clk 0:02:56.7]}
8... c4 {[%clk 0:02:39]} 9. Ne5 {[%clk 0:02:48.9]} 9... h6 {[%clk 0:02:25.4]}
10. Bf4 {[%clk 0:02:34.5]} 10... Nc6 {[%clk 0:02:16.3]} 11. Rc1 {[%clk
0:02:31.5]} 11... Bf5 {[%clk 0:02:12.5]} 12. b3 {[%clk 0:02:30.4]} 12... Ba3
{[%clk 0:02:03.8]} 13. Nxc6 {[%clk 0:02:20.4]} 13... bxc6 {[%clk 0:02:00]} 14.
bxc4 {[%clk 0:02:20.4]} 14... Bxc1 {[%clk 0:01:58.7]} 15. Qxc1 {[%clk 0:02:20]}
15... Ne4 {[%clk 0:01:58.3]} 16. Nxe4 {[%clk 0:01:56.1]} 16... Bxe4 {[%clk
0:01:57.4]} 17. f3 {[%clk 0:01:44.9]} 17... Bg6 {[%clk 0:01:53.8]} 18. Qc3
{[%clk 0:01:44.8]} 18... Re8 {[%clk 0:01:48.3]} 19. Re1 {[%clk 0:01:43.4]} 19...
Qb6 {[%clk 0:01:30.4]} 20. e4 {[%clk 0:01:39.9]} 20... Rad8 {[%clk 0:01:21.6]}
21. Bd6 {[%clk 0:01:18.3]} 21... dxc4 {[%clk 0:01:09.7]} 22. Bc5 {[%clk
0:01:15.5]} 22... Qa6 {[%clk 0:01:09.7]} 23. Bf1 {[%clk 0:01:15]} 23... Rb8
{[%clk 0:00:43.4]} 24. Bxc4 {[%clk 0:01:14]} 24... Qb7 {[%clk 0:00:43]} 25. Bb3
{[%clk 0:01:08]} 25... Kh7 {[%clk 0:00:35.5]} 26. Rc1 {[%clk 0:01:06.6]} 26...
f5 {[%clk 0:00:23.9]} 27. e5 {[%clk 0:01:01.9]} 27... Bf7 {[%clk 0:00:24]} 28.
Bd6 {[%clk 0:01:00]} 28... Rbc8 {[%clk 0:00:20.6]} 29. Bxf7 {[%clk 0:00:50.6]}
29... Qxf7 {[%clk 0:00:21.5]} 30. Qb3 {[%clk 0:00:50.6]} 30... Qh5 {[%clk
0:00:20.6]} 31. Kg2 {[%clk 0:00:47.4]} 31... f4 {[%clk 0:00:17.5]} 32. g4 {[%clk
0:00:46.5]} 32... Qg6 {[%clk 0:00:17.8]} 33. Qc2 {[%clk 0:00:46.7]} 33... a5
{[%clk 0:00:14.2]} 34. Qxg6+ {[%clk 0:00:45.5]} 34... Kxg6 {[%clk 0:00:15.1]}
35. Rb1 {[%clk 0:00:45.6]} 35... Ra8 {[%clk 0:00:12.1]} 36. Rb7 {[%clk
0:00:41.7]} 36... a4 {[%clk 0:00:12.3]} 37. a3 {[%clk 0:00:41.3]} 37... Ra5
{[%clk 0:00:12.3]} 38. Rc7 {[%clk 0:00:36.8]} 38... Rb5 {[%clk 0:00:12.6]} 39.
Bb4 {[%clk 0:00:28.9]} 39... Re6 {[%clk 0:00:10.7]} 40. Kf2 {[%clk 0:00:26.8]}
40... Rd5 {[%clk 0:00:10.5]} 41. Bf8 {[%clk 0:00:21.9]} 41... Kg5 {[%clk
0:00:01.5]} 42. Rxg7+ {[%clk 0:00:19.3]} 1-0

[Event "*** Titled Tuesday Blitz"]
[Site "Chess.com"]
[Date "2020.04.21"]
[Round "8"]
[White "isla88"]
[Black "StegariuVlad"]
[Result "1-0"]
[WhiteElo "2332"]
[BlackElo "2499"]
[TimeControl "180+1"]
[EndTime "11:39:12 PDT"]
[Termination "isla88 won by resignation"]

1. c4 {[%clk 0:03:00.9]} 1... Nf6 {[%clk 0:02:39.4]} 2. Nc3 {[%clk 0:02:59.8]}
2... g6 {[%clk 0:02:29.4]} 3. e4 {[%clk 0:02:59.4]} 3... d6 {[%clk 0:02:29.1]}
4. d4 {[%clk 0:02:58.6]} 4... Bg7 {[%clk 0:02:29.3]} 5. h3 {[%clk 0:02:59.3]}
5... O-O {[%clk 0:02:29.1]} 6. Be3 {[%clk 0:02:59.9]} 6... e5 {[%clk 0:02:27.2]}
7. d5 {[%clk 0:03:00]} 7... Na6 {[%clk 0:02:25.4]} 8. Nge2 {[%clk 0:02:41.8]}
8... Nc5 {[%clk 0:02:23.7]} 9. f3 {[%clk 0:02:42.1]} 9... a5 {[%clk 0:02:22.3]}
10. g4 {[%clk 0:02:41.4]} 10... Nfd7 {[%clk 0:02:22.1]} 11. Qd2 {[%clk
0:02:36.2]} 11... f5 {[%clk 0:02:21.6]} 12. gxf5 {[%clk 0:02:35.8]} 12... gxf5
{[%clk 0:02:21.4]} 13. exf5 {[%clk 0:02:36.1]} 13... Qh4+ {[%clk 0:02:18.7]} 14.
Bf2 {[%clk 0:02:33.7]} 14... Qxc4 {[%clk 0:02:03.1]} 15. Nd4 {[%clk 0:02:16.2]}
15... Qb4 {[%clk 0:02:02.8]} 16. a3 {[%clk 0:01:55.1]} 16... Qb6 {[%clk
0:01:38.6]} 17. Ne6 {[%clk 0:01:54.5]} 17... Rxf5 {[%clk 0:01:35.3]} 18. Nxg7
{[%clk 0:01:54.1]} 18... Kxg7 {[%clk 0:01:33.9]} 19. Rg1+ {[%clk 0:01:53.5]}
19... Kf7 {[%clk 0:01:20.4]} 20. Rb1 {[%clk 0:01:10.8]} 20... Nf8 {[%clk
0:00:46.8]} 21. Qh6 {[%clk 0:01:04.6]} 21... Qb3 {[%clk 0:00:34.7]} 22. Qg7+
{[%clk 0:00:54.4]} 22... Ke8 {[%clk 0:00:34.5]} 23. Bh4 {[%clk 0:00:54]} 23...
Rf7 {[%clk 0:00:33.8]} 24. Qg5 {[%clk 0:00:51.7]} 24... Bf5 {[%clk 0:00:32.9]}
25. Bb5+ {[%clk 0:00:45.9]} 25... c6 {[%clk 0:00:27.3]} 26. dxc6 {[%clk
0:00:45.7]} 26... bxc6 {[%clk 0:00:25.6]} 27. Bxc6+ {[%clk 0:00:45.3]} 27... Bd7
{[%clk 0:00:26]} 28. Bd5 {[%clk 0:00:36.6]} 28... Nd3+ {[%clk 0:00:15.7]} 29.
Kd2 {[%clk 0:00:36.2]} 29... Be6 {[%clk 0:00:07.4]} 30. Bxb3 {[%clk 0:00:26.8]}
30... Bxb3 {[%clk 0:00:07.4]} 31. Kxd3 {[%clk 0:00:26.6]} 31... Rc8 {[%clk
0:00:07]} 32. Qg4 {[%clk 0:00:21.9]} 32... Be6 {[%clk 0:00:05.2]} 33. Qa4+
{[%clk 0:00:21.7]} 33... Bd7 {[%clk 0:00:04.9]} 34. Qxa5 {[%clk 0:00:21.9]}
34... Bf5+ {[%clk 0:00:05.1]} 35. Ke2 {[%clk 0:00:20.6]} 35... Bxb1 {[%clk
0:00:04.3]} 36. Rxb1 {[%clk 0:00:21.5]} 36... Ng6 {[%clk 0:00:04.5]} 37. Qb5+
{[%clk 0:00:21.5]} 37... Kf8 {[%clk 0:00:04.4]} 38. Bg3 {[%clk 0:00:19.1]} 38...
Kg8 {[%clk 0:00:04]} 39. Rd1 {[%clk 0:00:18.6]} 39... Rcf8 {[%clk 0:00:04]} 40.
Rf1 {[%clk 0:00:18]} 40... Rf6 {[%clk 0:00:02.2]} 41. Qd5+ {[%clk 0:00:18]}
41... Kg7 {[%clk 0:00:02.2]} 42. Ne4 {[%clk 0:00:18.5]} 42... Rf5 {[%clk
0:00:01.9]} 43. Qxd6 {[%clk 0:00:17.8]} 43... R5f6 {[%clk 0:00:02.5]} 44. Nxf6
{[%clk 0:00:17.3]} 44... Rxf6 {[%clk 0:00:03.2]} 45. Bxe5 {[%clk 0:00:17.3]}
45... Nxe5 {[%clk 0:00:02.5]} 46. Qxe5 {[%clk 0:00:17.6]} 46... Kf7 {[%clk
0:00:03.4]} 47. Qxf6+ {[%clk 0:00:17.9]} 1-0

[Event "*** Titled Tuesday Blitz"]
[Site "Chess.com"]
[Date "2020.04.21"]
[Round "8"]
[White "Igrok3069"]
[Black "Paralinch"]
[Result "0-1"]
[WhiteElo "2779"]
[BlackElo "2958"]
[TimeControl "180+1"]
[EndTime "11:39:13 PDT"]
[Termination "Paralinch won on time"]

1. d4 {[%clk 0:03:00.9]} 1... d5 {[%clk 0:03:00.5]} 2. c4 {[%clk 0:03:00.4]}
2... dxc4 {[%clk 0:03:01.4]} 3. Nf3 {[%clk 0:02:59]} 3... a6 {[%clk 0:02:59.5]}
4. e3 {[%clk 0:02:59.1]} 4... Nf6 {[%clk 0:02:59.9]} 5. Bxc4 {[%clk 0:02:58.7]}
5... e6 {[%clk 0:03:00.6]} 6. O-O {[%clk 0:02:57.2]} 6... c5 {[%clk 0:03:01.2]}
7. b3 {[%clk 0:02:57.4]} 7... cxd4 {[%clk 0:02:56.4]} 8. Nxd4 {[%clk 0:02:57.1]}
8... Bd7 {[%clk 0:02:57]} 9. Bb2 {[%clk 0:02:56.9]} 9... Nc6 {[%clk 0:02:57.7]}
10. Nd2 {[%clk 0:02:57]} 10... Be7 {[%clk 0:02:49.8]} 11. Be2 {[%clk 0:02:56]}
11... O-O {[%clk 0:02:45.6]} 12. Nc4 {[%clk 0:02:35.4]} 12... Rc8 {[%clk
0:02:37.3]} 13. Bf3 {[%clk 0:02:19.6]} 13... Nxd4 {[%clk 0:02:29.8]} 14. Bxd4
{[%clk 0:02:16.4]} 14... Bc6 {[%clk 0:02:30.3]} 15. Rc1 {[%clk 0:01:50.8]} 15...
Nd7 {[%clk 0:02:18.2]} 16. Bxc6 {[%clk 0:01:42]} 16... Rxc6 {[%clk 0:02:19.1]}
17. Qg4 {[%clk 0:01:42.4]} 17... Bf6 {[%clk 0:02:10.8]} 18. a4 {[%clk
0:01:29.8]} 18... b5 {[%clk 0:01:49.9]} 19. axb5 {[%clk 0:01:28.2]} 19... axb5
{[%clk 0:01:50.8]} 20. Nd2 {[%clk 0:01:15.8]} 20... Qc7 {[%clk 0:01:35.2]} 21.
Rxc6 {[%clk 0:01:11.3]} 21... Qxc6 {[%clk 0:01:36.1]} 22. Nf3 {[%clk 0:01:02.2]}
22... Rc8 {[%clk 0:01:20.6]} 23. h3 {[%clk 0:01:02]} 23... h6 {[%clk 0:01:20.2]}
24. Ra1 {[%clk 0:00:41.5]} 24... Qd6 {[%clk 0:01:18]} 25. Qe4 {[%clk 0:00:33.5]}
25... Nc5 {[%clk 0:01:12.2]} 26. Qc2 {[%clk 0:00:27.6]} 26... e5 {[%clk
0:00:55.2]} 27. Bb2 {[%clk 0:00:27.5]} 27... e4 {[%clk 0:00:49.9]} 28. Nd4
{[%clk 0:00:25.9]} 28... Rc7 {[%clk 0:00:36.7]} 29. Ra8+ {[%clk 0:00:17.3]}
29... Kh7 {[%clk 0:00:36.6]} 30. Ba3 {[%clk 0:00:15.4]} 30... Qd5 {[%clk
0:00:32.2]} 31. Bxc5 {[%clk 0:00:09.8]} 31... Qxa8 {[%clk 0:00:29.9]} 32. b4
{[%clk 0:00:08]} 32... Bxd4 {[%clk 0:00:28.3]} 33. exd4 {[%clk 0:00:07.9]} 33...
Qd5 {[%clk 0:00:28.8]} 34. g4 {[%clk 0:00:07.7]} 34... f5 {[%clk 0:00:27.8]} 35.
gxf5 {[%clk 0:00:06.2]} 35... Qxf5 {[%clk 0:00:28.7]} 36. Qe2 {[%clk 0:00:05.9]}
36... Rf7 {[%clk 0:00:27.4]} 37. d5 {[%clk 0:00:04.6]} 37... Qg5+ {[%clk
0:00:25.2]} 38. Kf1 {[%clk 0:00:03.7]} 38... Qxd5 {[%clk 0:00:24.9]} 39. Qxb5
{[%clk 0:00:03.8]} 39... Qd1+ {[%clk 0:00:23.5]} 40. Kg2 {[%clk 0:00:03.7]}
40... Qf3+ {[%clk 0:00:23.3]} 41. Kg1 {[%clk 0:00:03.3]} 41... Qxh3 {[%clk
0:00:20.6]} 42. Qc6 {[%clk 0:00:03.4]} 42... Qg4+ {[%clk 0:00:19.9]} 43. Kf1
{[%clk 0:00:03.8]} 43... Rf6 {[%clk 0:00:19.4]} 44. Qd5 {[%clk 0:00:03.6]} 44...
Qh3+ {[%clk 0:00:18.7]} 45. Ke1 {[%clk 0:00:03]} 45... Qh1+ {[%clk 0:00:18.9]}
46. Ke2 {[%clk 0:00:02.9]} 46... Qf3+ {[%clk 0:00:19.2]} 47. Ke1 {[%clk
0:00:03.5]} 47... Rg6 {[%clk 0:00:19.1]} 0-1

[Event "*** Titled Tuesday Blitz"]
[Site "Chess.com"]
[Date "2020.04.21"]
[Round "8"]
[White "EugeneRougon"]
[Black "Ranindu2003"]
[Result "1-0"]
[WhiteElo "2699"]
[BlackElo "2512"]
[TimeControl "180+1"]
[EndTime "11:39:13 PDT"]
[Termination "EugeneRougon won by resignation"]

1. e4 {[%clk 0:03:00.9]} 1... c5 {[%clk 0:02:58.1]} 2. Nf3 {[%clk 0:03:00]} 2...
Nc6 {[%clk 0:02:57.6]} 3. Bb5 {[%clk 0:02:59.7]} 3... e6 {[%clk 0:02:56.7]} 4.
O-O {[%clk 0:02:59.4]} 4... Nge7 {[%clk 0:02:55.5]} 5. d4 {[%clk 0:02:59.4]}
5... cxd4 {[%clk 0:02:54.5]} 6. Nxd4 {[%clk 0:02:58.8]} 6... Qb6 {[%clk
0:02:54.6]} 7. Nxc6 {[%clk 0:02:59.3]} 7... bxc6 {[%clk 0:02:47.1]} 8. Bd3
{[%clk 0:02:51.7]} 8... d5 {[%clk 0:02:43.7]} 9. Kh1 {[%clk 0:02:41.7]} 9... Bb7
{[%clk 0:02:21.5]} 10. Nc3 {[%clk 0:02:38.1]} 10... Ng6 {[%clk 0:02:07.3]} 11.
exd5 {[%clk 0:02:28.3]} 11... cxd5 {[%clk 0:01:52.2]} 12. Bb5+ {[%clk
0:02:27.5]} 12... Bc6 {[%clk 0:01:44.9]} 13. Be3 {[%clk 0:02:26]} 13... Qb7
{[%clk 0:01:38.8]} 14. Bxc6+ {[%clk 0:02:12.7]} 14... Qxc6 {[%clk 0:01:39.5]}
15. Bd4 {[%clk 0:02:13.2]} 15... f6 {[%clk 0:01:28.1]} 16. f4 {[%clk 0:02:05.6]}
16... Bc5 {[%clk 0:01:00.6]} 17. Bxc5 {[%clk 0:01:55.7]} 17... Qxc5 {[%clk
0:01:01.5]} 18. f5 {[%clk 0:01:56.6]} 18... exf5 {[%clk 0:00:57.6]} 19. Rxf5
{[%clk 0:01:51.8]} 19... Rd8 {[%clk 0:00:57.5]} 20. Rxd5 {[%clk 0:01:43.4]}
20... Rxd5 {[%clk 0:00:56]} 21. Qxd5 {[%clk 0:01:39.8]} 21... Qxd5 {[%clk
0:00:55.5]} 22. Nxd5 {[%clk 0:01:40.7]} 22... Kf7 {[%clk 0:00:56]} 23. c4 {[%clk
0:01:39]} 23... Ne5 {[%clk 0:00:53.9]} 24. b3 {[%clk 0:01:38.8]} 24... Rd8
{[%clk 0:00:53.4]} 25. h3 {[%clk 0:01:29.3]} 25... Nd3 {[%clk 0:00:51.1]} 26.
Kg1 {[%clk 0:01:28.7]} 26... Re8 {[%clk 0:00:49.8]} 27. Rd1 {[%clk 0:01:25.5]}
27... Nc5 {[%clk 0:00:45.4]} 28. b4 {[%clk 0:01:05.8]} 28... Na4 {[%clk
0:00:44.7]} 29. c5 {[%clk 0:01:00.6]} 29... Rc8 {[%clk 0:00:42.4]} 30. Re1
{[%clk 0:00:57.1]} 30... Re8 {[%clk 0:00:38]} 31. Rxe8 {[%clk 0:00:52.1]} 31...
Kxe8 {[%clk 0:00:38.8]} 32. Kf2 {[%clk 0:00:52.2]} 32... Kd7 {[%clk 0:00:34.6]}
33. Ke3 {[%clk 0:00:52.5]} 33... Nb2 {[%clk 0:00:30.1]} 34. Kd4 {[%clk
0:00:51.7]} 34... a6 {[%clk 0:00:24.9]} 35. Ne3 {[%clk 0:00:45.1]} 35... Kc6
{[%clk 0:00:24.4]} 36. Kc3 {[%clk 0:00:44.5]} 36... Na4+ {[%clk 0:00:23.2]} 37.
Kb3 {[%clk 0:00:43.8]} 37... Kb5 {[%clk 0:00:23.5]} 38. Nd5 {[%clk 0:00:39]}
38... f5 {[%clk 0:00:21.9]} 39. Nc7+ {[%clk 0:00:30.4]} 39... Kc6 {[%clk
0:00:21.5]} 40. Nxa6 {[%clk 0:00:29.8]} 40... Kb5 {[%clk 0:00:21.4]} 41. Nc7+
{[%clk 0:00:27.5]} 41... Kc6 {[%clk 0:00:21.7]} 42. Ne8 {[%clk 0:00:27.6]} 42...
Kb5 {[%clk 0:00:20.1]} 43. Nd6+ {[%clk 0:00:27.4]} 1-0

[Event "*** Titled Tuesday Blitz"]
[Site "Chess.com"]
[Date "2020.04.21"]
[Round "8"]
[White "Ind1anStar"]
[Black "XiaoKangZhong"]
[Result "0-1"]
[WhiteElo "2574"]
[BlackElo "2378"]
[TimeControl "180+1"]
[EndTime "11:39:13 PDT"]
[Termination "XiaoKangZhong won on time"]

1. c4 {[%clk 0:03:00.9]} 1... Nf6 {[%clk 0:02:58.8]} 2. Nc3 {[%clk 0:02:59.9]}
2... e5 {[%clk 0:02:59]} 3. g3 {[%clk 0:02:58.8]} 3... Nc6 {[%clk 0:02:54.7]} 4.
Bg2 {[%clk 0:02:59]} 4... Be7 {[%clk 0:02:54]} 5. e3 {[%clk 0:02:57.4]} 5... O-O
{[%clk 0:02:53.7]} 6. Nge2 {[%clk 0:02:57]} 6... Re8 {[%clk 0:02:48.3]} 7. O-O
{[%clk 0:02:56.4]} 7... Bf8 {[%clk 0:02:45.5]} 8. d3 {[%clk 0:02:56.6]} 8... d6
{[%clk 0:02:42.6]} 9. Rb1 {[%clk 0:02:56.1]} 9... a5 {[%clk 0:02:41.3]} 10. a3
{[%clk 0:02:55.2]} 10... g6 {[%clk 0:02:28.9]} 11. b4 {[%clk 0:02:55.1]} 11...
axb4 {[%clk 0:02:29.5]} 12. axb4 {[%clk 0:02:55.3]} 12... Nh5 {[%clk 0:02:27.5]}
13. Nd5 {[%clk 0:02:47.9]} 13... Ne7 {[%clk 0:02:23.1]} 14. Nec3 {[%clk
0:02:46.2]} 14... c6 {[%clk 0:02:11.2]} 15. Nxe7+ {[%clk 0:02:45.7]} 15... Qxe7
{[%clk 0:02:12.1]} 16. b5 {[%clk 0:02:43.6]} 16... Bd7 {[%clk 0:02:06.2]} 17.
bxc6 {[%clk 0:02:42.9]} 17... bxc6 {[%clk 0:02:07.1]} 18. Rb7 {[%clk 0:02:41.1]}
18... Qe6 {[%clk 0:02:03.9]} 19. Ne4 {[%clk 0:02:27.4]} 19... Reb8 {[%clk
0:01:57.2]} 20. Qb3 {[%clk 0:02:14.5]} 20... Qe8 {[%clk 0:01:39.8]} 21. Bf3
{[%clk 0:01:50.5]} 21... f5 {[%clk 0:01:36.3]} 22. Ng5 {[%clk 0:01:32.8]} 22...
Nf6 {[%clk 0:01:30.1]} 23. Bg2 {[%clk 0:01:24.6]} 23... h6 {[%clk 0:01:14.9]}
24. Nf3 {[%clk 0:01:24.3]} 24... e4 {[%clk 0:01:12.1]} 25. dxe4 {[%clk 0:01:19]}
25... Nxe4 {[%clk 0:01:08.3]} 26. Nd4 {[%clk 0:01:12.7]} 26... c5 {[%clk
0:00:32.9]} 27. Ne2 {[%clk 0:01:01.4]} 27... Bc6 {[%clk 0:00:28]} 28. Rxb8
{[%clk 0:00:56.7]} 28... Rxb8 {[%clk 0:00:28.9]} 29. Qd3 {[%clk 0:00:57.2]}
29... Rb4 {[%clk 0:00:26.3]} 30. Nf4 {[%clk 0:00:56.4]} 30... Qf7 {[%clk
0:00:20.1]} 31. Nd5 {[%clk 0:00:40.7]} 31... Bxd5 {[%clk 0:00:20.3]} 32. cxd5
{[%clk 0:00:41.6]} 32... Bg7 {[%clk 0:00:18.8]} 33. Ba3 {[%clk 0:00:36]} 33...
Ra4 {[%clk 0:00:19]} 34. Rb1 {[%clk 0:00:33.2]} 34... c4 {[%clk 0:00:18.5]} 35.
Qc2 {[%clk 0:00:21]} 35... Rxa3 {[%clk 0:00:18.7]} 36. Bxe4 {[%clk 0:00:21.5]}
36... fxe4 {[%clk 0:00:18.6]} 37. Qxe4 {[%clk 0:00:22.4]} 37... Ra2 {[%clk
0:00:18.8]} 38. f4 {[%clk 0:00:18.2]} 38... Qf5 {[%clk 0:00:17.2]} 39. Rb8+
{[%clk 0:00:12.8]} 39... Kh7 {[%clk 0:00:17.2]} 40. Qe8 {[%clk 0:00:13]} 40...
h5 {[%clk 0:00:13.2]} 41. e4 {[%clk 0:00:09]} 41... Qh3 {[%clk 0:00:11.6]} 42.
Qg8+ {[%clk 0:00:05.9]} 42... Kh6 {[%clk 0:00:11.8]} 43. Qh8+ {[%clk 0:00:02.1]}
43... Bxh8 {[%clk 0:00:11.8]} 44. Rxh8+ {[%clk 0:00:02.7]} 44... Kg7 {[%clk
0:00:12.6]} 0-1